[Event "Late-Titled-Tuesday-Blitz-March-12-2024"]
[Site "Chess.com"]
[Date "2024.03.12"]
[Round "1"]
[White "JaackCamel"]
[Black "YoreDea"]
[Result "0-1"]
[WhiteElo "2207"]
[BlackElo "2604"]
[TimeControl "180+1"]
[EndTime "14:02:52 PDT"]
[Termination "YoreDea won by checkmate"]

1. d4 {[%clk 0:02:58.9]} 1... e6 {[%clk 0:02:57.7]} 2. c4 {[%clk 0:02:58.3]}
2... d5 {[%clk 0:02:57.4]} 3. Nc3 {[%clk 0:02:57.6]} 3... c5 {[%clk 0:02:57.5]}
4. cxd5 {[%clk 0:02:56.9]} 4... cxd4 {[%clk 0:02:57]} 5. Qxd4 {[%clk 0:02:55.1]}
5... Nc6 {[%clk 0:02:55.5]} 6. Qd1 {[%clk 0:02:53.7]} 6... exd5 {[%clk
0:02:49.1]} 7. Qxd5 {[%clk 0:02:51.8]} 7... Qc7 {[%clk 0:02:47.5]} 8. a3 {[%clk
0:02:47]} 8... Nf6 {[%clk 0:02:43.8]} 9. Qd1 {[%clk 0:02:20.4]} 9... Bf5 {[%clk
0:02:39.6]} 10. Be3 {[%clk 0:02:11.2]} 10... Rd8 {[%clk 0:02:38.4]} 11. Qa4
{[%clk 0:02:10.7]} 11... Be7 {[%clk 0:02:32]} 12. Nf3 {[%clk 0:02:08.9]} 12...
O-O {[%clk 0:02:30.6]} 13. g3 {[%clk 0:02:08.7]} 13... Ng4 {[%clk 0:02:23.6]}
14. Bc1 {[%clk 0:01:41.7]} 14... Bc5 {[%clk 0:02:18.8]} 15. Qf4 {[%clk
0:01:30.2]} 15... Bxf2# {[%clk 0:02:17.8]} 0-1

[Event "Late-Titled-Tuesday-Blitz-March-12-2024"]
[Site "Chess.com"]
[Date "2024.03.12"]
[Round "1"]
[White "pooh2012"]
[Black "Angry_Twin"]
[Result "0-1"]
[WhiteElo "2533"]
[BlackElo "2954"]
[TimeControl "180+1"]
[EndTime "14:03:10 PDT"]
[Termination "Angry_Twin won by resignation"]

1. d4 {[%clk 0:03:00.9]} 1... Nf6 {[%clk 0:02:59.5]} 2. Nc3 {[%clk 0:03:00.9]}
2... d5 {[%clk 0:02:59.3]} 3. Nf3 {[%clk 0:03:01.3]} 3... g6 {[%clk 0:02:59.6]}
4. g3 {[%clk 0:03:01.9]} 4... Bg7 {[%clk 0:02:59.9]} 5. Bg2 {[%clk 0:03:02.6]}
5... O-O {[%clk 0:03:00.6]} 6. O-O {[%clk 0:03:02.8]} 6... c6 {[%clk 0:03:01]}
7. Bf4 {[%clk 0:03:01.2]} 7... Bf5 {[%clk 0:03:01]} 8. e3 {[%clk 0:03:01.5]}
8... Nbd7 {[%clk 0:03:00]} 9. Nh4 {[%clk 0:03:00.6]} 9... Be6 {[%clk 0:03:00]}
10. Nf3 {[%clk 0:03:00]} 10... h6 {[%clk 0:02:57.4]} 11. h4 {[%clk 0:02:58.6]}
11... Bf5 {[%clk 0:02:55]} 12. Na4 {[%clk 0:02:56.2]} 12... Ne4 {[%clk 0:02:53]}
13. Nd2 {[%clk 0:02:53]} 13... Nxd2 {[%clk 0:02:41.9]} 14. Qxd2 {[%clk
0:02:53.9]} 14... e5 {[%clk 0:02:42.6]} 15. Bxe5 {[%clk 0:02:49.4]} 15... Nxe5
{[%clk 0:02:43.5]} 16. dxe5 {[%clk 0:02:49.6]} 16... Bxe5 {[%clk 0:02:43.9]} 17.
Nc5 {[%clk 0:02:43.9]} 17... Qe7 {[%clk 0:02:41.2]} 18. Nd3 {[%clk 0:02:40.7]}
18... Bg7 {[%clk 0:02:41.3]} 19. c3 {[%clk 0:02:38.2]} 19... Rfe8 {[%clk
0:02:41.2]} 20. Rad1 {[%clk 0:02:30.3]} 20... Rad8 {[%clk 0:02:41.2]} 21. Nc1
{[%clk 0:02:29.6]} 21... Be4 {[%clk 0:02:40.4]} 22. Nb3 {[%clk 0:02:27.5]} 22...
Bxg2 {[%clk 0:02:33.3]} 23. Kxg2 {[%clk 0:02:28.4]} 23... Qe4+ {[%clk
0:02:33.5]} 24. Kh2 {[%clk 0:02:22.4]} 24... Bf6 {[%clk 0:02:31]} 25. Qd3 {[%clk
0:02:17.6]} 25... Qg4 {[%clk 0:02:30.2]} 26. Nc1 {[%clk 0:02:01.1]} 26... Bxh4
{[%clk 0:02:23.3]} 27. gxh4 {[%clk 0:02:02]} 27... Qxh4+ {[%clk 0:02:23]} 28.
Kg2 {[%clk 0:01:57.5]} 28... Qg4+ {[%clk 0:02:23.3]} 29. Kh2 {[%clk 0:01:49.4]}
29... Re5 {[%clk 0:02:24.2]} 0-1

[Event "Late-Titled-Tuesday-Blitz-March-12-2024"]
[Site "Chess.com"]
[Date "2024.03.12"]
[Round "1"]
[White "wadsy27"]
[Black "KnightmareJoker"]
[Result "1-0"]
[WhiteElo "2625"]
[BlackElo "2264"]
[TimeControl "180+1"]
[EndTime "14:04:00 PDT"]
[Termination "wadsy27 won by resignation"]

1. Nf3 {[%clk 0:02:59.3]} 1... d5 {[%clk 0:03:00.1]} 2. g3 {[%clk 0:02:59.8]}
2... Nf6 {[%clk 0:03:00.5]} 3. Bg2 {[%clk 0:03:00.4]} 3... c5 {[%clk 0:03:00.9]}
4. O-O {[%clk 0:03:00.4]} 4... Nc6 {[%clk 0:03:01.3]} 5. c4 {[%clk 0:03:00.7]}
5... e6 {[%clk 0:02:59.7]} 6. cxd5 {[%clk 0:02:58.4]} 6... exd5 {[%clk
0:02:59.4]} 7. d4 {[%clk 0:02:57.6]} 7... c4 {[%clk 0:02:55.1]} 8. b3 {[%clk
0:02:56.4]} 8... b5 {[%clk 0:02:54]} 9. a4 {[%clk 0:02:55.7]} 9... Ba6 {[%clk
0:02:50.5]} 10. axb5 {[%clk 0:02:51.1]} 10... Bxb5 {[%clk 0:02:50.7]} 11. Na3
{[%clk 0:02:44.8]} 11... Bxa3 {[%clk 0:02:27.9]} 12. Bxa3 {[%clk 0:02:43.5]}
12... Ne7 {[%clk 0:02:23.3]} 13. bxc4 {[%clk 0:02:32.6]} 13... Bxc4 {[%clk
0:02:21.1]} 14. Ne5 {[%clk 0:02:32.7]} 14... Bb5 {[%clk 0:02:03.2]} 15. Qb3
{[%clk 0:02:31.1]} 15... a6 {[%clk 0:01:59.7]} 16. Bxe7 {[%clk 0:02:26.4]} 16...
Kxe7 {[%clk 0:01:38.3]} 17. Rfc1 {[%clk 0:02:24.3]} 17... Re8 {[%clk 0:01:33.4]}
18. Qa3+ {[%clk 0:02:01.9]} 18... Qd6 {[%clk 0:01:31.8]} 19. Rc7+ {[%clk
0:02:01.3]} 19... Bd7 {[%clk 0:01:19.2]} 20. Nc6+ {[%clk 0:01:56.9]} 20... Ke6
{[%clk 0:01:08.8]} 21. Bh3+ {[%clk 0:01:55.2]} 1-0

[Event "Late-Titled-Tuesday-Blitz-March-12-2024"]
[Site "Chess.com"]
[Date "2024.03.12"]
[Round "1"]
[White "Timerkhanov"]
[Black "FMYiLiu"]
[Result "1-0"]
[WhiteElo "2633"]
[BlackElo "2219"]
[TimeControl "180+1"]
[EndTime "14:04:18 PDT"]
[Termination "Timerkhanov won by resignation"]

1. d4 {[%clk 0:02:58]} 1... d5 {[%clk 0:02:59.9]} 2. Nf3 {[%clk 0:02:57.4]} 2...
Nf6 {[%clk 0:02:58.3]} 3. g3 {[%clk 0:02:57.7]} 3... Bf5 {[%clk 0:02:57.9]} 4.
Bg2 {[%clk 0:02:57.9]} 4... e6 {[%clk 0:02:58.6]} 5. O-O {[%clk 0:02:58.4]} 5...
h6 {[%clk 0:02:59.2]} 6. c4 {[%clk 0:02:57.8]} 6... c6 {[%clk 0:02:58.7]} 7. Nc3
{[%clk 0:02:56.4]} 7... Be7 {[%clk 0:02:58.6]} 8. Qb3 {[%clk 0:02:56.5]} 8...
Qb6 {[%clk 0:02:59.1]} 9. c5 {[%clk 0:02:55.8]} 9... Qxb3 {[%clk 0:02:59.1]} 10.
axb3 {[%clk 0:02:56.7]} 10... a6 {[%clk 0:02:59]} 11. b4 {[%clk 0:02:57.1]}
11... O-O {[%clk 0:02:59]} 12. b5 {[%clk 0:02:57.4]} 12... cxb5 {[%clk 0:02:58]}
13. Nxb5 {[%clk 0:02:57.9]} 13... Nc6 {[%clk 0:02:58.6]} 14. Nc3 {[%clk
0:02:54.7]} 14... b6 {[%clk 0:02:16.8]} 15. cxb6 {[%clk 0:02:52.1]} 15... Rfb8
{[%clk 0:02:15.9]} 16. Na4 {[%clk 0:02:48]} 16... Nd7 {[%clk 0:02:15.3]} 17. Bf4
{[%clk 0:02:45.7]} 17... Rb7 {[%clk 0:02:15.3]} 18. Rfc1 {[%clk 0:02:43.1]}
18... Na5 {[%clk 0:02:05]} 19. Rc7 {[%clk 0:02:40.2]} 19... Bd8 {[%clk 0:01:52]}
20. Rxd7 {[%clk 0:02:12.2]} 20... Rxd7 {[%clk 0:01:51.5]} 21. Nc5 {[%clk
0:02:12.8]} 21... Re7 {[%clk 0:01:43.3]} 22. Rxa5 {[%clk 0:02:08.9]} 22... Bxb6
{[%clk 0:01:43.9]} 23. Ra1 {[%clk 0:02:03.4]} 23... a5 {[%clk 0:01:33.7]} 24.
Ne5 {[%clk 0:01:55.6]} 24... a4 {[%clk 0:01:26.2]} 25. Rxa4 {[%clk 0:01:44.7]}
25... Rxa4 {[%clk 0:01:25.7]} 26. Nxa4 {[%clk 0:01:45.6]} 26... Ra7 {[%clk
0:01:25.9]} 27. b3 {[%clk 0:01:44.2]} 27... Bxd4 {[%clk 0:01:22.5]} 28. Nc6
{[%clk 0:01:44.1]} 1-0

[Event "Late-Titled-Tuesday-Blitz-March-12-2024"]
[Site "Chess.com"]
[Date "2024.03.12"]
[Round "1"]
[White "GOGIEFF"]
[Black "RebelJohnny"]
[Result "1-0"]
[WhiteElo "3015"]
[BlackElo "2544"]
[TimeControl "180+1"]
[EndTime "14:04:39 PDT"]
[Termination "GOGIEFF won by resignation"]

1. d4 {[%clk 0:03:00.9]} 1... d5 {[%clk 0:02:59.7]} 2. c4 {[%clk 0:03:00.3]}
2... dxc4 {[%clk 0:03:00.6]} 3. Nf3 {[%clk 0:02:59.4]} 3... Nf6 {[%clk
0:03:00.5]} 4. e3 {[%clk 0:02:59.4]} 4... e6 {[%clk 0:03:00.3]} 5. Bxc4 {[%clk
0:02:59.4]} 5... c5 {[%clk 0:03:00.3]} 6. O-O {[%clk 0:02:59.5]} 6... a6 {[%clk
0:02:59.7]} 7. Bb3 {[%clk 0:02:53.9]} 7... b5 {[%clk 0:02:21.2]} 8. a4 {[%clk
0:02:50.8]} 8... b4 {[%clk 0:02:21.5]} 9. Nbd2 {[%clk 0:02:48.8]} 9... Bb7
{[%clk 0:02:17]} 10. e4 {[%clk 0:02:45.1]} 10... Be7 {[%clk 0:02:11.1]} 11. e5
{[%clk 0:02:42.4]} 11... Nfd7 {[%clk 0:02:11.3]} 12. Nc4 {[%clk 0:02:29.4]}
12... O-O {[%clk 0:02:10.8]} 13. Nd6 {[%clk 0:02:15.8]} 13... Bxd6 {[%clk
0:02:08.4]} 14. exd6 {[%clk 0:02:16.7]} 14... cxd4 {[%clk 0:02:09.3]} 15. Nxd4
{[%clk 0:01:56.6]} 15... Nc5 {[%clk 0:02:08.1]} 16. Bc2 {[%clk 0:01:37.6]} 16...
Qxd6 {[%clk 0:02:04.2]} 17. Qh5 {[%clk 0:01:35.4]} 17... g6 {[%clk 0:02:00.1]}
18. Qh4 {[%clk 0:01:32.7]} 18... Nc6 {[%clk 0:01:58.4]} 19. Be3 {[%clk
0:01:20.5]} 19... Qd5 {[%clk 0:01:41.7]} 20. f3 {[%clk 0:01:12.1]} 20... Nxd4
{[%clk 0:01:28.7]} 21. Bxd4 {[%clk 0:01:08.2]} 21... e5 {[%clk 0:01:29.3]} 22.
Bf2 {[%clk 0:01:08.1]} 22... Ne6 {[%clk 0:01:29.2]} 23. Qxb4 {[%clk 0:01:02.7]}
23... Nd4 {[%clk 0:01:27.3]} 24. Be4 {[%clk 0:00:58.8]} 1-0

[Event "Late-Titled-Tuesday-Blitz-March-12-2024"]
[Site "Chess.com"]
[Date "2024.03.12"]
[Round "1"]
[White "PelinGorki"]
[Black "shimastream"]
[Result "0-1"]
[WhiteElo "2534"]
[BlackElo "2969"]
[TimeControl "180+1"]
[EndTime "14:04:44 PDT"]
[Termination "shimastream won by resignation"]

1. e4 {[%clk 0:03:00.9]} 1... b6 {[%clk 0:02:59.1]} 2. Nc3 {[%clk 0:02:58.6]}
2... Bb7 {[%clk 0:02:59.5]} 3. f4 {[%clk 0:02:59.2]} 3... e6 {[%clk 0:02:59.4]}
4. Nf3 {[%clk 0:02:59.2]} 4... d5 {[%clk 0:02:58]} 5. e5 {[%clk 0:02:59.4]} 5...
d4 {[%clk 0:02:57]} 6. Ne2 {[%clk 0:02:58.5]} 6... Bxf3 {[%clk 0:02:56.4]} 7.
gxf3 {[%clk 0:02:58.4]} 7... Nh6 {[%clk 0:02:55.8]} 8. Ng3 {[%clk 0:02:53.1]}
8... Be7 {[%clk 0:02:55.3]} 9. Bd3 {[%clk 0:02:41.5]} 9... g6 {[%clk 0:02:54.3]}
10. Be4 {[%clk 0:02:37.3]} 10... c6 {[%clk 0:02:52.7]} 11. Qe2 {[%clk
0:02:35.4]} 11... Qd7 {[%clk 0:02:48.4]} 12. b3 {[%clk 0:02:34.7]} 12... a5
{[%clk 0:02:38]} 13. a4 {[%clk 0:02:33.7]} 13... Na6 {[%clk 0:02:36.5]} 14. Bb2
{[%clk 0:02:33.6]} 14... Nf5 {[%clk 0:02:31.9]} 15. Qc4 {[%clk 0:02:28.4]} 15...
Nb4 {[%clk 0:02:29.6]} 16. c3 {[%clk 0:02:23]} 16... dxc3 {[%clk 0:02:28.2]} 17.
dxc3 {[%clk 0:02:23.9]} 17... Nd5 {[%clk 0:02:28.1]} 18. O-O-O {[%clk
0:02:18.6]} 18... Nfe3 {[%clk 0:02:27.1]} 19. Qd4 {[%clk 0:02:07.3]} 19... Nxd1
{[%clk 0:02:27.2]} 20. Rxd1 {[%clk 0:02:07.9]} 20... Qc7 {[%clk 0:02:27.4]} 21.
c4 {[%clk 0:01:54.6]} 21... Nb4 {[%clk 0:02:24.5]} 22. Qe3 {[%clk 0:01:36]}
22... Rd8 {[%clk 0:02:21.7]} 23. Re1 {[%clk 0:01:36.4]} 23... Bc5 {[%clk
0:02:17.5]} 24. Qe2 {[%clk 0:01:34.7]} 24... Qe7 {[%clk 0:02:11.7]} 25. Bc3
{[%clk 0:01:22.7]} 25... O-O {[%clk 0:02:10.3]} 26. Qg2 {[%clk 0:01:15]} 26...
Kh8 {[%clk 0:01:57.9]} 27. h4 {[%clk 0:01:12.7]} 27... Qxh4 {[%clk 0:01:55.6]}
28. Rh1 {[%clk 0:01:13.3]} 28... Qxf4+ {[%clk 0:01:55.7]} 29. Kb2 {[%clk
0:01:13.1]} 29... Bd4 {[%clk 0:01:51.1]} 30. Nh5 {[%clk 0:00:56.6]} 30... Bxc3+
{[%clk 0:01:48.8]} 31. Ka3 {[%clk 0:00:56.9]} 31... Qxe5 {[%clk 0:01:41.8]} 0-1

[Event "Late-Titled-Tuesday-Blitz-March-12-2024"]
[Site "Chess.com"]
[Date "2024.03.12"]
[Round "1"]
[White "bascheyaro"]
[Black "thesupera12"]
[Result "1-0"]
[WhiteElo "2784"]
[BlackElo "2443"]
[TimeControl "180+1"]
[EndTime "14:04:46 PDT"]
[Termination "bascheyaro won by resignation"]

1. d4 {[%clk 0:02:23.3]} 1... d5 {[%clk 0:02:55.4]} 2. c4 {[%clk 0:02:23.2]}
2... Nf6 {[%clk 0:02:54.6]} 3. Nc3 {[%clk 0:02:24.1]} 3... e6 {[%clk 0:02:53]}
4. Nf3 {[%clk 0:02:25]} 4... Bb4 {[%clk 0:02:51.9]} 5. Bg5 {[%clk 0:02:25]} 5...
O-O {[%clk 0:02:51.6]} 6. e3 {[%clk 0:02:25.3]} 6... h6 {[%clk 0:02:50.5]} 7.
Bh4 {[%clk 0:02:25.4]} 7... c5 {[%clk 0:02:49.4]} 8. dxc5 {[%clk 0:02:25.5]}
8... g5 {[%clk 0:02:44.5]} 9. Bg3 {[%clk 0:02:25.3]} 9... Bxc5 {[%clk
0:02:44.6]} 10. cxd5 {[%clk 0:02:24.9]} 10... Nxd5 {[%clk 0:02:44.6]} 11. Nxd5
{[%clk 0:02:25]} 11... Qxd5 {[%clk 0:02:45.3]} 12. Qxd5 {[%clk 0:02:24.6]} 12...
exd5 {[%clk 0:02:46]} 13. a3 {[%clk 0:02:25.1]} 13... Nc6 {[%clk 0:02:45.2]} 14.
b4 {[%clk 0:02:21.6]} 14... Bb6 {[%clk 0:02:45.4]} 15. Rd1 {[%clk 0:02:12.2]}
15... Be6 {[%clk 0:02:41.9]} 16. Bb5 {[%clk 0:02:10.4]} 16... g4 {[%clk
0:02:31.1]} 17. Ne5 {[%clk 0:01:59.6]} 17... Nxe5 {[%clk 0:02:29.2]} 18. Bxe5
{[%clk 0:02:00.5]} 18... Rac8 {[%clk 0:02:28.7]} 19. O-O {[%clk 0:01:58.7]}
19... Rc2 {[%clk 0:02:28.7]} 20. a4 {[%clk 0:01:51.5]} 20... a6 {[%clk
0:02:24.2]} 21. Bd3 {[%clk 0:01:51]} 21... Rc6 {[%clk 0:02:18.3]} 22. a5 {[%clk
0:01:47.4]} 22... Bc7 {[%clk 0:02:17.6]} 23. Bd4 {[%clk 0:01:45.9]} 23... Bd6
{[%clk 0:02:17]} 24. b5 {[%clk 0:01:46.1]} 24... axb5 {[%clk 0:02:14.5]} 25.
Bxb5 {[%clk 0:01:47]} 25... Rc2 {[%clk 0:02:13.9]} 26. Rb1 {[%clk 0:01:21.2]}
26... Ra8 {[%clk 0:02:11.2]} 27. Bb6 {[%clk 0:01:07.1]} 27... Bc7 {[%clk
0:02:03.2]} 28. Bd3 {[%clk 0:01:05.7]} 28... Rc3 {[%clk 0:02:03.5]} 29. Rfc1
{[%clk 0:00:52.8]} 29... Rxc1+ {[%clk 0:01:55.1]} 30. Rxc1 {[%clk 0:00:53.7]}
30... Bxb6 {[%clk 0:01:55.6]} 31. axb6 {[%clk 0:00:53.6]} 31... Ra3 {[%clk
0:01:56.2]} 32. Bc2 {[%clk 0:00:50.9]} 32... Rc3 {[%clk 0:01:54.9]} 33. Bh7+
{[%clk 0:00:50.8]} 33... Kxh7 {[%clk 0:01:53.1]} 34. Rxc3 {[%clk 0:00:51.2]}
34... Kg6 {[%clk 0:01:53.9]} 35. Rc7 {[%clk 0:00:51.4]} 1-0

[Event "Late-Titled-Tuesday-Blitz-March-12-2024"]
[Site "Chess.com"]
[Date "2024.03.12"]
[Round "1"]
[White "Russian_berezka"]
[Black "DanielNaroditsky"]
[Result "0-1"]
[WhiteElo "2560"]
[BlackElo "3085"]
[TimeControl "180+1"]
[EndTime "14:04:48 PDT"]
[Termination "DanielNaroditsky won by checkmate"]

1. d4 {[%clk 0:02:52.1]} 1... Nf6 {[%clk 0:02:59.4]} 2. Bf4 {[%clk 0:02:48.5]}
2... c5 {[%clk 0:02:59]} 3. e3 {[%clk 0:02:46.2]} 3... cxd4 {[%clk 0:02:58.4]}
4. exd4 {[%clk 0:02:47.1]} 4... Qb6 {[%clk 0:02:59]} 5. Nc3 {[%clk 0:02:46.2]}
5... a6 {[%clk 0:02:58.4]} 6. Rb1 {[%clk 0:02:44.7]} 6... d5 {[%clk 0:02:57.4]}
7. Nf3 {[%clk 0:02:43.2]} 7... Bg4 {[%clk 0:02:57.5]} 8. Be2 {[%clk 0:02:41.3]}
8... e6 {[%clk 0:02:55.6]} 9. h3 {[%clk 0:02:40.5]} 9... Bxf3 {[%clk 0:02:55.8]}
10. Bxf3 {[%clk 0:02:39.7]} 10... Nc6 {[%clk 0:02:56.7]} 11. Be3 {[%clk
0:02:37.8]} 11... Bd6 {[%clk 0:02:57.1]} 12. O-O {[%clk 0:02:35.9]} 12... O-O
{[%clk 0:02:57.5]} 13. Ne2 {[%clk 0:02:34.2]} 13... Qc7 {[%clk 0:02:57.1]} 14.
c3 {[%clk 0:02:32.6]} 14... b5 {[%clk 0:02:57.5]} 15. Qd2 {[%clk 0:02:32]} 15...
Ne7 {[%clk 0:02:34.3]} 16. Bg5 {[%clk 0:02:26.7]} 16... Ng6 {[%clk 0:02:27.1]}
17. Bxf6 {[%clk 0:02:12.9]} 17... gxf6 {[%clk 0:02:25.5]} 18. g3 {[%clk
0:02:13.8]} 18... f5 {[%clk 0:02:20.6]} 19. Nc1 {[%clk 0:02:02.3]} 19... Kh8
{[%clk 0:02:18]} 20. Nd3 {[%clk 0:02:01.6]} 20... Rg8 {[%clk 0:02:18.4]} 21. Bh5
{[%clk 0:01:51]} 21... Bxg3 {[%clk 0:02:14.1]} 22. Kh1 {[%clk 0:01:23.3]} 22...
Nf4 {[%clk 0:02:04.2]} 23. Bxf7 {[%clk 0:01:16.4]} 23... Nxd3 {[%clk 0:01:31.9]}
24. Bxg8 {[%clk 0:01:02.9]} 24... Nxf2+ {[%clk 0:01:30.8]} 25. Rxf2 {[%clk
0:00:59.4]} 25... Bxf2 {[%clk 0:01:31.7]} 26. Bxe6 {[%clk 0:00:57.6]} 26... Qg3
{[%clk 0:01:31.6]} 27. Qh6 {[%clk 0:00:54.2]} 27... Qf3+ {[%clk 0:01:30.7]} 28.
Kh2 {[%clk 0:00:53.3]} 28... Bg3+ {[%clk 0:01:31.4]} 29. Kg1 {[%clk 0:00:53.6]}
29... Qf2+ {[%clk 0:01:32.3]} 30. Kh1 {[%clk 0:00:54.5]} 30... Qh2# {[%clk
0:01:33.2]} 0-1

[Event "Late-Titled-Tuesday-Blitz-March-12-2024"]
[Site "Chess.com"]
[Date "2024.03.12"]
[Round "1"]
[White "Cyrano-Lossi"]
[Black "wannabe2700"]
[Result "0-1"]
[WhiteElo "2224"]
[BlackElo "2613"]
[TimeControl "180+1"]
[EndTime "14:04:49 PDT"]
[Termination "wannabe2700 won by resignation"]

1. d4 {[%clk 0:03:00]} 1... f5 {[%clk 0:02:59.4]} 2. g3 {[%clk 0:02:51.8]} 2...
Nf6 {[%clk 0:02:58.8]} 3. Bg2 {[%clk 0:02:52.1]} 3... g6 {[%clk 0:02:59.7]} 4.
c4 {[%clk 0:02:52.4]} 4... Bg7 {[%clk 0:03:00.3]} 5. Nc3 {[%clk 0:02:53]} 5...
O-O {[%clk 0:03:00.7]} 6. Nf3 {[%clk 0:02:51.3]} 6... d6 {[%clk 0:03:01.1]} 7.
d5 {[%clk 0:02:51]} 7... c6 {[%clk 0:03:02]} 8. O-O {[%clk 0:02:47.9]} 8... e5
{[%clk 0:03:01.7]} 9. dxe6 {[%clk 0:02:44.7]} 9... Bxe6 {[%clk 0:03:01.5]} 10.
Qb3 {[%clk 0:02:28.9]} 10... Na6 {[%clk 0:02:39.7]} 11. Be3 {[%clk 0:02:10.7]}
11... b5 {[%clk 0:02:34]} 12. Qa3 {[%clk 0:01:37.4]} 12... b4 {[%clk 0:02:33.3]}
13. Qxa6 {[%clk 0:01:37.3]} 13... bxc3 {[%clk 0:02:34]} 14. bxc3 {[%clk
0:01:36.2]} 14... Qc8 {[%clk 0:02:32.1]} 15. Qa4 {[%clk 0:01:26.3]} 15... Ne4
{[%clk 0:02:31.7]} 16. Bd4 {[%clk 0:00:58.4]} 16... c5 {[%clk 0:02:24.6]} 17.
Bxg7 {[%clk 0:00:57.1]} 17... Kxg7 {[%clk 0:02:25.5]} 18. Rac1 {[%clk
0:00:48.7]} 18... Qe8 {[%clk 0:02:23.8]} 19. Qa6 {[%clk 0:00:32.7]} 19... Qf7
{[%clk 0:02:23.7]} 20. Rfd1 {[%clk 0:00:15.8]} 20... Bxc4 {[%clk 0:02:23.8]} 21.
Qc6 {[%clk 0:00:14.7]} 21... Rac8 {[%clk 0:02:15.8]} 22. Qa4 {[%clk 0:00:13.6]}
22... Bxe2 {[%clk 0:02:15.8]} 23. Re1 {[%clk 0:00:11.7]} 23... Bc4 {[%clk
0:02:15.9]} 24. Rb1 {[%clk 0:00:04.8]} 24... Nxc3 {[%clk 0:02:14.2]} 0-1

[Event "Late-Titled-Tuesday-Blitz-March-12-2024"]
[Site "Chess.com"]
[Date "2024.03.12"]
[Round "1"]
[White "N18player"]
[Black "KuzubovYuriy"]
[Result "0-1"]
[WhiteElo "2518"]
[BlackElo "2908"]
[TimeControl "180+1"]
[EndTime "14:04:50 PDT"]
[Termination "KuzubovYuriy won by resignation"]

1. Nf3 {[%clk 0:03:00.9]} 1... d5 {[%clk 0:03:00]} 2. b3 {[%clk 0:02:59.7]} 2...
c5 {[%clk 0:02:58]} 3. e3 {[%clk 0:02:59.9]} 3... a6 {[%clk 0:02:58]} 4. Bb2
{[%clk 0:02:59.6]} 4... Nc6 {[%clk 0:02:58.3]} 5. d4 {[%clk 0:02:58.8]} 5...
cxd4 {[%clk 0:02:58.1]} 6. exd4 {[%clk 0:02:59.1]} 6... Bg4 {[%clk 0:02:56.2]}
7. Nbd2 {[%clk 0:02:55.2]} 7... e6 {[%clk 0:02:56]} 8. a3 {[%clk 0:02:55.4]}
8... Bd6 {[%clk 0:02:51.8]} 9. Bd3 {[%clk 0:02:55.1]} 9... Nge7 {[%clk 0:02:48]}
10. O-O {[%clk 0:02:54]} 10... h6 {[%clk 0:02:47.4]} 11. Re1 {[%clk 0:02:54]}
11... O-O {[%clk 0:02:46.6]} 12. h3 {[%clk 0:02:45.3]} 12... Bh5 {[%clk
0:02:46.1]} 13. Rc1 {[%clk 0:02:38.1]} 13... Bf4 {[%clk 0:02:46.1]} 14. Be2
{[%clk 0:02:28.7]} 14... Rc8 {[%clk 0:02:45.2]} 15. g3 {[%clk 0:02:12.5]} 15...
Bxd2 {[%clk 0:02:38.5]} 16. Qxd2 {[%clk 0:02:09.3]} 16... Qb6 {[%clk 0:02:29.7]}
17. Ne5 {[%clk 0:01:42.6]} 17... Bxe2 {[%clk 0:02:29]} 18. Rxe2 {[%clk
0:01:43.1]} 18... Nxe5 {[%clk 0:02:28.5]} 19. Rxe5 {[%clk 0:01:43.2]} 19... Rc6
{[%clk 0:02:25.1]} 20. b4 {[%clk 0:01:38.1]} 20... Qc7 {[%clk 0:02:21.8]} 21. c3
{[%clk 0:01:35.3]} 21... Nf5 {[%clk 0:02:22]} 22. Re2 {[%clk 0:01:24.4]} 22...
Nd6 {[%clk 0:02:21.4]} 23. Qd3 {[%clk 0:01:25]} 23... Nc4 {[%clk 0:02:20.3]} 24.
Rec2 {[%clk 0:01:16.9]} 24... Rc8 {[%clk 0:02:19.1]} 25. Kf1 {[%clk 0:01:06.5]}
25... Nxb2 {[%clk 0:02:16.4]} 26. Rxb2 {[%clk 0:01:06.4]} 26... Rxc3 {[%clk
0:02:16.8]} 27. Rxc3 {[%clk 0:01:04.8]} 27... Qxc3 {[%clk 0:02:17.7]} 28. Rd2
{[%clk 0:01:02.2]} 28... Qxd3+ {[%clk 0:02:13.4]} 29. Rxd3 {[%clk 0:01:02.5]}
29... Rc4 {[%clk 0:02:11.5]} 30. Ke2 {[%clk 0:01:02.3]} 30... Kf8 {[%clk
0:02:11.8]} 31. Kd2 {[%clk 0:01:02.2]} 31... Ke7 {[%clk 0:02:11.9]} 32. Ke3
{[%clk 0:00:59.9]} 32... Kd6 {[%clk 0:02:12.3]} 33. Rb3 {[%clk 0:00:59.7]} 33...
Kc6 {[%clk 0:02:10.8]} 34. a4 {[%clk 0:00:59.1]} 34... b5 {[%clk 0:02:08.9]} 35.
axb5+ {[%clk 0:00:59]} 35... Kxb5 {[%clk 0:02:07.6]} 36. Kf4 {[%clk 0:00:52.5]}
36... f6 {[%clk 0:02:01.9]} 37. Kg4 {[%clk 0:00:51.8]} 37... g6 {[%clk
0:02:01.3]} 38. f4 {[%clk 0:00:50.9]} 38... Rxd4 {[%clk 0:02:00.5]} 39. h4
{[%clk 0:00:50.2]} 39... h5+ {[%clk 0:01:58.8]} 0-1

[Event "Late-Titled-Tuesday-Blitz-March-12-2024"]
[Site "Chess.com"]
[Date "2024.03.12"]
[Round "1"]
[White "Jagerrmeisterr"]
[Black "Bkmzzzzz"]
[Result "1-0"]
[WhiteElo "2708"]
[BlackElo "2385"]
[TimeControl "180+1"]
[EndTime "14:04:53 PDT"]
[Termination "Jagerrmeisterr won by resignation"]

1. e4 {[%clk 0:03:00.9]} 1... d6 {[%clk 0:03:00]} 2. Nc3 {[%clk 0:03:00]} 2...
Nf6 {[%clk 0:03:00.2]} 3. f4 {[%clk 0:02:58.3]} 3... c5 {[%clk 0:02:56.1]} 4.
Nf3 {[%clk 0:02:57.3]} 4... Nc6 {[%clk 0:02:56.2]} 5. a3 {[%clk 0:02:57.2]} 5...
g6 {[%clk 0:02:51.9]} 6. Bc4 {[%clk 0:02:57]} 6... Bg7 {[%clk 0:02:50.5]} 7. O-O
{[%clk 0:02:55.9]} 7... O-O {[%clk 0:02:50.1]} 8. d3 {[%clk 0:02:55.9]} 8... a6
{[%clk 0:02:48.8]} 9. Qe1 {[%clk 0:02:54.6]} 9... b5 {[%clk 0:02:47.7]} 10. Ba2
{[%clk 0:02:54.8]} 10... Rb8 {[%clk 0:02:46.3]} 11. f5 {[%clk 0:02:52.5]} 11...
Nd4 {[%clk 0:01:58.3]} 12. Ng5 {[%clk 0:02:27.8]} 12... h6 {[%clk 0:01:32.8]}
13. Nxf7 {[%clk 0:02:13.2]} 13... Rxf7 {[%clk 0:01:32.6]} 14. fxg6 {[%clk
0:02:12.3]} 14... Be6 {[%clk 0:00:57.9]} 15. Bxe6 {[%clk 0:02:07.1]} 15... Nxe6
{[%clk 0:00:58.8]} 16. gxf7+ {[%clk 0:02:07.5]} 16... Kxf7 {[%clk 0:00:59.2]}
17. Qh4 {[%clk 0:02:07.8]} 17... Qh8 {[%clk 0:00:37.1]} 18. Nd5 {[%clk
0:02:03.4]} 18... Nd4 {[%clk 0:00:35]} 19. Qh5+ {[%clk 0:01:54]} 19... Ke6
{[%clk 0:00:28.5]} 20. Nxf6 {[%clk 0:01:47.8]} 20... Bxf6 {[%clk 0:00:23.9]} 21.
c3 {[%clk 0:01:46.3]} 21... Nb3 {[%clk 0:00:22.2]} 22. Qd5+ {[%clk 0:01:44.9]}
1-0